{"text_format":"1","workbook":"xlsx","n_sheets":5,"sheets":["Readme","FishData","Retro-bias","Vocabularies","Changes Log"],"not_rendered":{"charts":0,"images":0,"macros":1,"external_links":0,"defined_names":14,"comments":0,"pivot_tables":0},"unopened":[],"bounds":{"document_bytes":16777216,"sheet_cells":100000,"rows_first":2000,"rows_last":500,"rows_between":2000,"halvings":0,"cell_chars":16384,"cell_head_chars":4096},"cells_cut":0,"cells_raw":0,"read":"whole","date_system":"1900"}

{"sheet":"Readme","index":0,"n_rows":39,"n_cols":10,"rows_kept":39,"cut":false,"hidden":false,"merged":[]}
["Stock Assessment database for standard graphs - upload template",null,null,null,null,null,null,null,"2026 v.1"]
[]
["This file converts data to an XML file that can be uploaded to the Stock Assessment database. "]
[]
["1) COPY YOUR DATA INTO THE EXCEL FILE tabs:"]
[]
[null,"FishData"]
[null,"Please fill in the summary of the assessment data"]
[null,"Remember to include the current year values for Recruitment and SSB"]
[null,"All green outlined cells should be checked / filled in"]
[]
[null,"Red outlined cells do not have to be filled in - only if changes have occurred",null,null,null,null,null,null,"These data can be updated while editing if need be "]
[]
[null,"If there are data available for which no standard columns are available"]
[null,"please check the far right hand side, where 'custom' columns can be filled in: ",null,null,null,null,null,null,"Fill in the data + correct header name and units"]
[]
[null,"Retro-bias"]
[null,"For all category 1 and 2 stocks, it is mandatory to submit retro-bias",null,null,null,null,null,null,null,"New requirement 2026"]
[]
[]
[null,"Please check the 'Changes Log' tab for a list of all changes from the previous version of the template"]
[]
[]
[]
[]
[]
[]
["2) EXPORT TO XML TEMPLATE"]
["Remember to click 'Options' - Enable macro's where these have been disabled. "]
["Click the 'export' button on the Fishdata page and save the .xml file "]
[]
["The .xml file can then be uploaded to the Standard Graph database via:"]
["http://standardgraphs.ices.dk/"]
[]
["List of the available stock codes in the standard graph database:  "]
["http://vocab.ices.dk/?ref=357"]
[]
[]
["..","Custom things should not be in standard things"]

{"sheet":"FishData","index":1,"n_rows":90,"n_cols":46,"rows_kept":90,"cut":false,"hidden":false,"merged":[[44,1,44,2],[45,1,45,2],[44,4,44,6],[43,4,43,9],[45,5,45,6],[39,26,39,35],[26,3,26,4],[27,3,27,4],[28,3,28,4],[29,3,29,4],[45,14,45,16],[45,10,45,12],[44,7,44,8],[45,7,45,8],[25,3,25,4]]}
["FishStock","AssessmentYear","Model Type","Contact person"]
[]
["Stock category","Purpose","Model Name","Assessment Component"]
[null,null,null,null,"Note: leave blank if only one component"]
[]
["Update the red cells if reference points have changed",null,null,"If this is a new stock, these data need to be filled in "]
[null,null,null,"only fill in values - leave a cell empty if no reference point is defined"]
["Reference points and ages ","Description","Value","no change = same reference points as last year"]
["MSY ","MSY Btrigger"]
["Approach","FMSY"]
["Precautionary approach","Blim"]
[null,"Bpa"]
[null,"BMSY",null,"New requirement 2026, mandatory for this year"]
[null,"Fpa"]
["Management","BMGT_lower",null,"Expected range: low","Expected range: high"]
["Plan/strategy","BMGT"]
[null,"BMGT_upper"]
[null,"FMGT_lower",null,"Expected range: low","Expected range: high"]
[null,"FMGT"]
[null,"FMGT_upper"]
[null,"HRMGT"]
["Short-lived stocks","MSY Besc"]
[null,"Fcap"]
[]
[null,"Name/label","Value","Notes "]
["Custom reference point 1"]
["Custom reference point 2"]
["Custom reference point 3"]
["Custom reference point 4"]
["Custom reference point 5"]
[]
["(choose age or length as appropriate)","Age","Length"]
["Recruitment "]
["F"]
[]
["Select Confidence Intervals",null,"Specify \"Other\" here",null,null,null,null,null,null,null,null,null,null,null,null,null,null,null,null,null,null,null,null,null,null,null,"Custom time series"]
[]
["Copy assessment data below (check the units!)",null,null,null,null,null,null,null,null,null,null,null,null,null,null,null,null,null,null,null,null,null,null,null,null,null,"In case there is information that is not covered by the standard columns"]
[]
[null,null,null,null,null,null,null,"Note: the final survey index for cat 3 goes here, in the Stock Size",null,null,null,"* Landings BMS (below minimum size): for stocks that under the EU landing obligation in 2015 +",null,null,null,null,null,null,null,null,null,null,null,null,null,null,"please fill in a name for this series (free text, f.ex: catches in Q1)"]
[null,null,null,null,null,null,null,"for further survey indexes use custom columns ",null,null,null,null,null,null,null,null,null,null,null,null,null,null,null,null,null,null,"please choose the correct TYPE from the drop-down menu (i.e. StockSize, FishingPressure, Other...)"]
[null,null,null,null,null,null,null,null,null,null,null,"Note: Select one unit for Catches/Landings/discards/ etc…",null,null,null,null,null,null,null,null,null,null,null,null,null,null,"please choose the correct UNIT from the drop-down menu (i.e. thousands, tonnes, NA,...)"]
[]
[null,null,"Recruitment",null,"Stock Size ",null,null,null,null,null,null,null,null,"Catches",null,null,null,null,"Fishing Pressure",null,null,null,null,null,null,null,"Custom1","Custom2","Custom3","Custom4","Custom5","Custom6","Custom7","Custom8","Custom9","Custom10","Custom11","Custom12","Custom13","Custom14","Custom15","Custom16","Custom17","Custom18","Custom19","Custom20"]
[null,"Select recruitment type:",null,null,"Total Biomass",null,null,"Select stock size indicator:",null,null,null,null,null,null,null,null,null,"Fishing pressure type",null,null,null,null,null,null,null,"Name"]
[null,"Select units:",null,null,"Select units:","same as stock size indicator",null,"Select units:",null,null,"Select units:",null,null,null,null,null,null,"Select units:",null,"For unitless, leave blank",null,null,null,null,null,"Type"]
[null,null,null,null,null,null,null,null,null,null,null,null,null,null,null,null,null,null,null,null,null,null,null,null,null,"Units"]
["Year","CI_lower","values","CI_upper","CI_lower","values","CI_upper","CI_lower","values","CI_upper","Catches","Landings","Landings BMS: below minimum size*","Discards","Logbook registered discards*","IBC","Unallocated_Removals","CI_lower","values","CI_upper","F_Landings","F_Discards","F_IBC","F_Unallocated",null,null,"Custom1","Custom2","Custom3","Custom4","Custom5","Custom6","Custom7","Custom8","Custom9","Custom10","Custom11","Custom12","Custom13","Custom14","Custom15","Custom16","Custom17","Custom18","Custom19","Custom20"]
[]
[null,null,null,null,null,null,null,null,null,null,null,null,null,null,null,null,null,null,null,null,null,null,null,null,null,{"$f":"IF(A50<>\"\",A50,\"\")","v":""}]
[null,null,null,null,null,null,null,null,null,null,null,null,null,null,null,null,null,null,null,null,null,null,null,null,null,""]
[null,null,null,null,null,null,null,null,null,null,null,null,null,null,null,null,null,null,null,null,null,null,null,null,null,""]
[null,null,null,null,null,null,null,null,null,null,null,null,null,null,null,null,null,null,null,null,null,null,null,null,null,""]
[null,null,null,null,null,null,null,null,null,null,null,null,null,null,null,null,null,null,null,null,null,null,null,null,null,""]
[null,null,null,null,null,null,null,null,null,null,null,null,null,null,null,null,null,null,null,null,null,null,null,null,null,""]
[null,null,null,null,null,null,null,null,null,null,null,null,null,null,null,null,null,null,null,null,null,null,null,null,null,""]
[null,null,null,null,null,null,null,null,null,null,null,null,null,null,null,null,null,null,null,null,null,null,null,null,null,""]
[null,null,null,null,null,null,null,null,null,null,null,null,null,null,null,null,null,null,null,null,null,null,null,null,null,""]
[null,null,null,null,null,null,null,null,null,null,null,null,null,null,null,null,null,null,null,null,null,null,null,null,null,""]
[null,null,null,null,null,null,null,null,null,null,null,null,null,null,null,null,null,null,null,null,null,null,null,null,null,""]
[null,null,null,null,null,null,null,null,null,null,null,null,null,null,null,null,null,null,null,null,null,null,null,null,null,""]
[null,null,null,null,null,null,null,null,null,null,null,null,null,null,null,null,null,null,null,null,null,null,null,null,null,""]
[null,null,null,null,null,null,null,null,null,null,null,null,null,null,null,null,null,null,null,null,null,null,null,null,null,""]
[null,null,null,null,null,null,null,null,null,null,null,null,null,null,null,null,null,null,null,null,null,null,null,null,null,""]
[null,null,null,null,null,null,null,null,null,null,null,null,null,null,null,null,null,null,null,null,null,null,null,null,null,""]
[null,null,null,null,null,null,null,null,null,null,null,null,null,null,null,null,null,null,null,null,null,null,null,null,null,""]
[null,null,null,null,null,null,null,null,null,null,null,null,null,null,null,null,null,null,null,null,null,null,null,null,null,""]
[null,null,null,null,null,null,null,null,null,null,null,null,null,null,null,null,null,null,null,null,null,null,null,null,null,""]
[null,null,null,null,null,null,null,null,null,null,null,null,null,null,null,null,null,null,null,null,null,null,null,null,null,""]
[null,null,null,null,null,null,null,null,null,null,null,null,null,null,null,null,null,null,null,null,null,null,null,null,null,""]
[null,null,null,null,null,null,null,null,null,null,null,null,null,null,null,null,null,null,null,null,null,null,null,null,null,""]
[null,null,null,null,null,null,null,null,null,null,null,null,null,null,null,null,null,null,null,null,null,null,null,null,null,""]
[null,null,null,null,null,null,null,null,null,null,null,null,null,null,null,null,null,null,null,null,null,null,null,null,null,""]
[null,null,null,null,null,null,null,null,null,null,null,null,null,null,null,null,null,null,null,null,null,null,null,null,null,""]
[null,null,null,null,null,null,null,null,null,null,null,null,null,null,null,null,null,null,null,null,null,null,null,null,null,""]
[null,null,null,null,null,null,null,null,null,null,null,null,null,null,null,null,null,null,null,null,null,null,null,null,null,""]
[null,null,null,null,null,null,null,null,null,null,null,null,null,null,null,null,null,null,null,null,null,null,null,null,null,""]
[null,null,null,null,null,null,null,null,null,null,null,null,null,null,null,null,null,null,null,null,null,null,null,null,null,""]
[null,null,null,null,null,null,null,null,null,null,null,null,null,null,null,null,null,null,null,null,null,null,null,null,null,""]
[null,null,null,null,null,null,null,null,null,null,null,null,null,null,null,null,null,null,null,null,null,null,null,null,null,""]
[null,null,null,null,null,null,null,null,null,null,null,null,null,null,null,null,null,null,null,null,null,null,null,null,null,""]
[null,null,null,null,null,null,null,null,null,null,null,null,null,null,null,null,null,null,null,null,null,null,null,null,null,""]
[null,null,null,null,null,null,null,null,null,null,null,null,null,null,null,null,null,null,null,null,null,null,null,null,null,""]
[null,null,null,null,null,null,null,null,null,null,null,null,null,null,null,null,null,null,null,null,null,null,null,null,null,""]
[null,null,null,null,null,null,null,null,null,null,null,null,null,null,null,null,null,null,null,null,null,null,null,null,null,""]
[null,null,null,null,null,null,null,null,null,null,null,null,null,null,null,null,null,null,null,null,null,null,null,null,null,""]
[null,null,null,null,null,null,null,null,null,null,null,null,null,null,null,null,null,null,null,null,null,null,null,null,null,""]
[null,null,null,null,null,null,null,null,null,null,null,null,null,null,null,null,null,null,null,null,null,null,null,null,null,""]
[null,null,null,null,null,null,null,null,null,null,null,null,null,null,null,null,null,null,null,null,null,null,null,null,null,""]
[null,null,null,null,null,null,null,null,null,null,null,null,null,null,null,null,null,null,null,null,null,null,null,null,null,""]

{"sheet":"Retro-bias","index":2,"n_rows":10,"n_cols":3,"rows_kept":10,"cut":false,"hidden":false,"merged":[]}
[]
[null,"Description","Value"]
[null,"Terminal Year of catch data"]
[null,"Number of retrospective assessments used"]
[null,"Fbar Rho value (enter values as a decimal not as a percentage)"]
[null,"SSB rho: was the intermediate year used as the terminal year? "]
[null,"SSB rho value (enter value as a decimal not as a percentage)"]
[null,"Recruitment rho: was the intermediate year used as the terminal year?"]
[null,"Recruitment rho value, put 0 (zero) if not applicable (enter value as a decimal not as a percentage)"]
[null,"Expert opinion on what is the cause of any retrospective bias (optional), or additional information as required"]

{"sheet":"Vocabularies","index":3,"n_rows":277,"n_cols":15,"rows_kept":277,"cut":false,"hidden":false,"merged":[]}
[]
["http://vocab.ices.dk/?ref=1526",null,null,"http://vocab.ices.dk/?ref=357",null,null,null,"http://vocab.ices.dk/?ref=1529",null,null,"http://vocab.ices.dk/?ref=1525",null,null,"http://vocab.ices.dk/?CodeTypeRelID=155&CodeID=168613"]
["Stock Category","Stock category description",null,"Stock code",null,"Recruitment",null,"Stock Size Indicator",null,null,"Model Name","Assessment Model Name description",null,"Units"]
[1,"Category 1. Data rich  fully accepted analytical assessment and short-term forecast",null,"agn.27.nea",null,"Recruitment",null,"SSB","Spawning Stock Biomass",null,"AartsPoos","Aarts and Poos (2009)  comprehensive discard reconstruction and abundance estimation model",null,"kg/d","Kilograms per day"]
[1.2,"Category 1 method with extremely low biomass with a zero catch advice",null,"alf.27.nea",null,"Abundance Index",null,"B/Bmsy","Biomass relative to Bmsy",null,"ADAPT","An Adaptive framework for the estimation of population size (VPA)",null,"kg/h","Kilograms per hour"]
[1.5,"Category 1 method with zero catch MSY advice and an advice for a 5000t scientific monitoring quota",null,"ane.27.8",null,null,null,"TSB/Bmsy","Total stock biomass relative to Bmsy",null,"AMISH","Assessment Method for the Ibero-Atlantic Stock of Horse Mackerel",null,"kg/hook","Kilograms per hook"]
[1.6,"Category 1 method with MSY and PA advice together",null,"ane.27.9aS",null,null,null,"UWTV_index","Underwater TV index",null,"ASAP","Age Structured Assessment Program (NOAA Toolbox)",null,"kg/km2","Kilogram per square kilometer"]
[1.7,"Category 1 method with advice for effort  not catch",null,"ane.27.9aW",null,null,null,"A_index","Abundance Index",null,"ASPIC","A Stock Production Model Incorporating Covariates (NOAA Toolbox)",null,"kg/kWd","Kilograms per kiloWatt day"]
[1.8,"Category 1 method with a management plan advice  but no reference points beyond Blim",null,"anf.27.1-2",null,null,null,"B_index","Biomass Index",null,"DCAC","Depletion Corrected Average Catch (NOAA Toolbox)",null,"kg/trap","Kilograms per trap"]
[2,"Category 2. Data rich, but with an assessment/forecast that is accepted for trends only",null,"anf.27.3a46",null,"Confidence Interval",null,"D_index","Density Index",null,"GADGET","Globally applicable Area Disaggregated General Ecosystem Toolbox",null,"kg/trip","Kilograms per trip"]
[2.11,"Category 2 method with biomass > MSYBtrigger",null,"ank.27.78abd",null,"90%",null,"Other","Other Stock Size descriptor",null,"MYCC","Multi-Year Catch Curve analysis",null,"N/hook","Numbers per hook"]
[2.12,"Category 2 method with biomass < MSYBtrigger",null,"ank.27.8c9a",null,"95%",null,null,null,null,"None","No model",null,"N/kWd","Numbers per kiloWatt day"]
[2.13,"Category 2 method with extremely low biomass with a zero catch advice",null,"aru.27.123a4",null,"sd",null,null,null,null,"Other","Other unnamed model",null,"N/trip","Numbers per trip"]
[3,"Category 3. Biomass/abundance trends-based assessment",null,"aru.27.5a14",null,"2*sd",null,null,null,null,"SAM","State-space Assessment Model",null,"N/d","Numbers per day"]
[3.1,"Category 3 method - not in use",null,"aru.27.5b6a",null,"se",null,"http://vocab.ices.dk/?ref=1524",null,null,"SCA","Generic Statistical Catch at Age model",null,"N/h","Numbers per hour"]
[3.11,"Category 3 method - not in use",null,"aru.27.6b7-1012",null,"na",null,"Model Type","Model Type description",null,"SMS","Stochastic Multi-species Model",null,"N/km2","Numbers per square kilometer"]
[3.12,"Category 3 method - not in use",null,"bli.27.123a4",null,"other",null,"A","Age based (like VPA, SCA, SAM)",null,"SPiCT","Stochastic Surplus Production Model in Continuous Time",null,"N/trap","Numbers per trap"]
[3.13,"Category 3 method - not in use",null,"bli.27.5a14",null,null,null,"AL","Age-length based (like GADGET, SS3)",null,"SPM","Generic Biomass dynamics (Surplus production) model",null,"NE9","Number of individuals in billions (x1000000000)"]
[3.14,"Category 3 method with extremely low biomass with a zero catch advice",null,"bli.27.5b6712",null,"http://vocab.ices.dk/?ref=1516",null,"B","Biomass model (like SPiCT)",null,"SS3","Stock Synthesis v3",null,"NE6","Number of individuals in millions (x1000000)"]
[3.2,"Category 3 method using an abundance/biomass Index and catch data",null,"bll.27.22-32",null,"Assessment Purpose",null,"None","None, data only",null,"StateSpace","Generic State-space model",null,"NE3","Number of individuals in thousands (x1000)"]
[3.3,"Category 3 method using an F reference proxy",null,"bll.27.3a47de",null,"Advice",null,"DLS","Data-limited stock methodologies",null,"TASACS","Toolbox for Age-structured Stock Assessment using Catch and Survey data",null,"N","Number of individuals"]
[3.8,"Category 3 method with no known/reviewed method for catch advice",null,"boc.27.6-8",null,"Bench",null,null,null,null,"TSA","Time Series Analysis",null,"t","tonnes"]
[3.9,"Category 3 data, but catch advice not possible",null,"bsf.27.nea",null,"InitAdvice",null,null,null,null,"VPA","Generic Virtual Population Analysis model",null,"kg","kilogram"]
[4,"Category 4. Catch only",null,"bsk.27.nea",null,"Replaced",null,null,null,null,"XSA","eXtended Survivor Analysis",null,"%","percent"]
[4.1100000000000003,"Category 4 method DCAC high",null,"bss.27.4bc7ad-h",null,"Unofficial",null,"http://vocab.ices.dk/?ref=1530",null,null,"XSAM","Another version of a state-space stock assessment model",null,"ratio","ratio"]
[4.12,"Category 4 method DCAC low",null,"bss.27.6a7bj",null,null,null,"Fishing Pressure Indicator",null,null,"YPR","Yield per Recruit model",null,"t/h","Tonnes per hour"]
[4.13,"Category 4 method using catch curves",null,"bss.27.8ab",null,null,null,"F","F",null,"chr","Constant harvest rate rule",null,"d/100hp","Days per 100 HP"]
[4.1399999999999997,"Category 4 method for Nephrops  data-borrowing",null,"bss.27.8c9a",null,null,null,"F/Fmsy","F/Fmsy",null,"rfb","Harvest control rule using a stock biomass trend and safeguard, together with length frequency distributions as a proxy for F",null,"das","Days at sea"]
[4.2,"Category 4 method with extremely low biomass and a zero catch advice",null,"bwp.27.2729-32",null,"http://vocab.ices.dk/?ref=362",null,"Frel","Harvest rate",null,"rb","Harvest control rule using a stock biomass trend and safeguard",null,"dop","Days out of port"]
[5,"Category 5. Data poor catch/landings only",null,"bzq.27.2425",null,"Year",null,"HR","Harvest rate/HRmsy",null,"http://vocab.ices.dk/?ref=1528",null,null,"fd","Fishing days"]
[5.0999999999999996,"Category 5 method not in use (PSA)",null,"bzq.27.2628",null,2010,null,"HR/HRmsy","Relative Harvest rate",null,"Custom Data Type",null,null,"fe","Number of fishing events"]
[5.2,"Category 5 method recent average catch",null,"caa.27.5a",null,2011,null,"HRrel","Fishing Pressure",null,"Catch",null,null,"gd","Gear days for fyke/trap nets"]
[5.3,"Category 5 method with extremely low biomass and a zero catch advice",null,"cap.27.1-2",null,2012,null,"Lfm/Lmean","Length-based fishing pressure proxy",null,"RecreationalCatch",null,null,"hd","Hook days for longlines"]
[5.9,"Category 5 data, but catch advice not possible",null,"cap.27.2a514",null,2013,null,null,null,null,"FishingPressure",null,null,"hf","Hours fished"]
[6,"Category 6. Data poor catch landings from bycatch stocks that are largely discarded at sea or rarely encountered",null,"cod.21.1.isc",null,2014,null,null,null,null,"RecrPressure",null,null,"hph","Horsepower-hours"]
[6.1,"Category 6 method not in use (PSA)",null,"cod.21.1.osc",null,2015,null,null,null,null,"StockSize",null,null,"kWd","KiloWatt days"]
[6.2,"Category 6 method recent average catch",null,"cod.21.27.1.14",null,2016,null,null,null,null,"Recruitment",null,null,"nd","Net-days"]
[6.3,"Category 6 method with extremely low biomass and a zero catch advice",null,"cod.27.1-2",null,2017,null,null,null,null,"Effort",null,null,"nmd","Net metre day (for GNS/GND)"]
[6.9,"Category 6 data, but catch advice not possible",null,"cod.27.1-2.coastN",null,2018,null,null,null,null,null,null,null,"NoV","Number of vessels"]
[null,null,null,"cod.27.2.coastS",null,2019,null,"https://vocab.ices.dk/?codetypeguid=9c290c98-d95a-4ccc-b076-9fe53a442296",null,null,null,null,null,"tr","Number of trips"]
[null,null,null,"cod.27.21",null,2020,null,"YesNoFields",null,null,null,null,null,"traps","Number of trap nets"]
[null,null,null,"cod.27.22-24",null,2021,null,"N","No"]
[null,null,null,"cod.27.24-32",null,2022,null,"Y","Yes"]
[null,null,null,"cod.27.46a7d20",null,2023]
[null,null,null,"cod.27.5a",null,2024]
[null,null,null,"cod.27.5b1",null,2025]
[null,null,null,"cod.27.5b2",null,2026]
[null,null,null,"cod.27.6b",null,2027]
[null,null,null,"cod.27.7a",null,2028]
[null,null,null,"cod.27.7e-k",null,2029]
[null,null,null,"cyo.27.nea",null,2030]
[null,null,null,"dab.27.22-32"]
[null,null,null,"dab.27.3a4"]
[null,null,null,"dgs.27.nea"]
[null,null,null,"ele.2737.nea"]
[null,null,null,"fle.27.2223"]
[null,null,null,"fle.27.3a4"]
[null,null,null,"gag.27.nea"]
[null,null,null,"gfb.27.nea"]
[null,null,null,"ghl.27.1-2"]
[null,null,null,"ghl.27.561214"]
[null,null,null,"gug.27.3a47d"]
[null,null,null,"guq.27.nea"]
[null,null,null,"gur.27.3-8"]
[null,null,null,"had.27.1-2"]
[null,null,null,"had.27.46a20"]
[null,null,null,"had.27.5a"]
[null,null,null,"had.27.5b"]
[null,null,null,"had.27.6b"]
[null,null,null,"had.27.7a"]
[null,null,null,"had.27.7b-k"]
[null,null,null,"her.27.1-24a514a"]
[null,null,null,"her.27.20-24"]
[null,null,null,"her.27.25-2932"]
[null,null,null,"her.27.28"]
[null,null,null,"her.27.3031"]
[null,null,null,"her.27.3a47d"]
[null,null,null,"her.27.5a"]
[null,null,null,"her.27.6aN"]
[null,null,null,"her.27.6aS7bc"]
[null,null,null,"her.27.7ef"]
[null,null,null,"her.27.irls"]
[null,null,null,"her.27.nirs"]
[null,null,null,"hke.27.3a46-8abd"]
[null,null,null,"hke.27.8c9a"]
[null,null,null,"hom.27.2a3a4a5b6a7a-ce-k8"]
[null,null,null,"hom.27.4bc7d"]
[null,null,null,"hom.27.9a"]
[null,null,null,"jaa.27.10a2"]
[null,null,null,"ldb.27.7b-k8abd"]
[null,null,null,"ldb.27.8c9a"]
[null,null,null,"lem.27.3a47d"]
[null,null,null,"lez.27.4a6a"]
[null,null,null,"lez.27.6b"]
[null,null,null,"lin.27.1-2"]
[null,null,null,"lin.27.346-91214"]
[null,null,null,"lin.27.5a"]
[null,null,null,"lin.27.5b"]
[null,null,null,"mac.27.nea"]
[null,null,null,"meg.27.7b-k8abd"]
[null,null,null,"meg.27.8c9a"]
[null,null,null,"mon.27.78abd"]
[null,null,null,"mon.27.8c9a"]
[null,null,null,"mur.27.3a47d"]
[null,null,null,"mur.27.67a-ce-k89a"]
[null,null,null,"nep.27.4outFU"]
[null,null,null,"nep.27.6aoutFU"]
[null,null,null,"nep.27.7outFU"]
[null,null,null,"nep.fu.10"]
[null,null,null,"nep.fu.11"]
[null,null,null,"nep.fu.12"]
[null,null,null,"nep.fu.13"]
[null,null,null,"nep.fu.14"]
[null,null,null,"nep.fu.15"]
[null,null,null,"nep.fu.16"]
[null,null,null,"nep.fu.17"]
[null,null,null,"nep.fu.19"]
[null,null,null,"nep.fu.2021"]
[null,null,null,"nep.fu.22"]
[null,null,null,"nep.fu.2324"]
[null,null,null,"nep.fu.25"]
[null,null,null,"nep.fu.2627"]
[null,null,null,"nep.fu.2829"]
[null,null,null,"nep.fu.3-4"]
[null,null,null,"nep.fu.30"]
[null,null,null,"nep.fu.31"]
[null,null,null,"nep.fu.32"]
[null,null,null,"nep.fu.33"]
[null,null,null,"nep.fu.34"]
[null,null,null,"nep.fu.5"]
[null,null,null,"nep.fu.6"]
[null,null,null,"nep.fu.7"]
[null,null,null,"nep.fu.8"]
[null,null,null,"nep.fu.9"]
[null,null,null,"nop.27.3a4"]
[null,null,null,"nop.27.6a"]
[null,null,null,"oal.27.8c9a"]
[null,null,null,"ory.27.nea"]
[null,null,null,"pil.27.7"]
[null,null,null,"pil.27.8abd"]
[null,null,null,"pil.27.8c9a"]
[null,null,null,"ple.27.21-32"]
[null,null,null,"ple.27.420"]
[null,null,null,"ple.27.5a"]
[null,null,null,"ple.27.7a"]
[null,null,null,"ple.27.7bc"]
[null,null,null,"ple.27.7d"]
[null,null,null,"ple.27.7e"]
[null,null,null,"ple.27.7fg"]
[null,null,null,"ple.27.7h-k"]
[null,null,null,"ple.27.89a"]
[null,null,null,"pok.27.1-2"]
[null,null,null,"pok.27.3a46"]
[null,null,null,"pok.27.5a"]
[null,null,null,"pok.27.5b"]
[null,null,null,"pok.27.7-10"]
[null,null,null,"pol.27.3a4"]
[null,null,null,"pol.27.67"]
[null,null,null,"pol.27.89a"]
[null,null,null,"por.27.nea"]
[null,null,null,"pra.27.1-2"]
[null,null,null,"pra.27.3a4a"]
[null,null,null,"pra.27.4a"]
[null,null,null,"raj.27.1012"]
[null,null,null,"raj.27.3a47d"]
[null,null,null,"raj.27.67a-ce-k"]
[null,null,null,"raj.27.89a"]
[null,null,null,"reb.2127.dp"]
[null,null,null,"reb.2127.sp"]
[null,null,null,"reb.27.1-2"]
[null,null,null,"reb.27.14b"]
[null,null,null,"reb.27.5a14"]
[null,null,null,"reg.27.1-2"]
[null,null,null,"reg.27.561214"]
[null,null,null,"rhg.27.nea"]
[null,null,null,"rja.27.nea"]
[null,null,null,"rjb.27.3a4"]
[null,null,null,"rjb.27.67a-ce-k"]
[null,null,null,"rjb.27.89a"]
[null,null,null,"rjc.27.3a47d"]
[null,null,null,"rjc.27.6"]
[null,null,null,"rjc.27.7afg"]
[null,null,null,"rjc.27.7e"]
[null,null,null,"rjc.27.8abd"]
[null,null,null,"rjc.27.8c"]
[null,null,null,"rjc.27.9a"]
[null,null,null,"rje.27.7de"]
[null,null,null,"rje.27.7fg"]
[null,null,null,"rjf.27.67"]
[null,null,null,"rjh.27.4a6"]
[null,null,null,"rjh.27.4bc7d"]
[null,null,null,"rjh.27.7afg"]
[null,null,null,"rjh.27.7e"]
[null,null,null,"rjh.27.9a"]
[null,null,null,"rji.27.67"]
[null,null,null,"rjm.27.3a47d"]
[null,null,null,"rjm.27.67bj"]
[null,null,null,"rjm.27.7ae-h"]
[null,null,null,"rjm.27.8"]
[null,null,null,"rjm.27.9a"]
[null,null,null,"rjn.27.3a4"]
[null,null,null,"rjn.27.678abd"]
[null,null,null,"rjn.27.8c"]
[null,null,null,"rjn.27.9a"]
[null,null,null,"rjr.27.23a4"]
[null,null,null,"rju.27.7bj"]
[null,null,null,"rju.27.7de"]
[null,null,null,"rju.27.8ab"]
[null,null,null,"rju.27.8c"]
[null,null,null,"rju.27.9a"]
[null,null,null,"rng.27.1245a8914ab"]
[null,null,null,"rng.27.3a"]
[null,null,null,"rng.27.5a10b12ac14b"]
[null,null,null,"rng.27.5b6712b"]
[null,null,null,"sal.27.22-31"]
[null,null,null,"sal.27.32"]
[null,null,null,"sal.nac.all"]
[null,null,null,"sal.neac.all"]
[null,null,null,"sal.wgc.all"]
[null,null,null,"san.27.6a"]
[null,null,null,"san.sa.1r"]
[null,null,null,"san.sa.2r"]
[null,null,null,"san.sa.3r"]
[null,null,null,"san.sa.4"]
[null,null,null,"san.sa.5r"]
[null,null,null,"san.sa.6"]
[null,null,null,"san.sa.7r"]
[null,null,null,"sbr.27.10"]
[null,null,null,"sbr.27.6-8"]
[null,null,null,"sbr.27.9"]
[null,null,null,"sck.27.nea"]
[null,null,null,"sdv.27.nea"]
[null,null,null,"seh.27.1"]
[null,null,null,"seh.27.125a14"]
[null,null,null,"sez.27.2514"]
[null,null,null,"sho.27.67"]
[null,null,null,"sho.27.89a"]
[null,null,null,"sol.27.20-24"]
[null,null,null,"sol.27.4"]
[null,null,null,"sol.27.7a"]
[null,null,null,"sol.27.7bc"]
[null,null,null,"sol.27.7d"]
[null,null,null,"sol.27.7e"]
[null,null,null,"sol.27.7fg"]
[null,null,null,"sol.27.7h-k"]
[null,null,null,"sol.27.8ab"]
[null,null,null,"sol.27.8c9a"]
[null,null,null,"sos.27.8c9a"]
[null,null,null,"spr.27.22-32"]
[null,null,null,"spr.27.3a4"]
[null,null,null,"spr.27.67a-cf-k"]
[null,null,null,"spr.27.7de"]
[null,null,null,"syc.27.3a47d"]
[null,null,null,"syc.27.67a-ce-j"]
[null,null,null,"syc.27.8abd"]
[null,null,null,"syc.27.8c9a"]
[null,null,null,"syt.27.67"]
[null,null,null,"thr.27.nea"]
[null,null,null,"trs.27.22-32"]
[null,null,null,"tsu.27.nea"]
[null,null,null,"tur.27.22-32"]
[null,null,null,"tur.27.3a"]
[null,null,null,"tur.27.4"]
[null,null,null,"usk.27.1-2"]
[null,null,null,"usk.27.12ac"]
[null,null,null,"usk.27.3a45b6a7-912b"]
[null,null,null,"usk.27.5a14"]
[null,null,null,"usk.27.6b"]
[null,null,null,"whb.27.1-91214"]
[null,null,null,"whg.27.3a"]
[null,null,null,"whg.27.47d"]
[null,null,null,"whg.27.6a"]
[null,null,null,"whg.27.6b"]
[null,null,null,"whg.27.7a"]
[null,null,null,"whg.27.7b-ce-k"]
[null,null,null,"whg.27.89a"]
[null,null,null,"wit.27.3a47d"]

{"sheet":"Changes Log","index":4,"n_rows":16,"n_cols":3,"rows_kept":16,"cut":false,"hidden":false,"merged":[]}
[]
["March 2026: ",null,"1. Permanently changed Flim with Bmsy"]
[null,null,"2. Custom limit is now Custom Reference point"]
[null,null,"3. Green lines in custom series changed to black"]
[null,null,"4. Vocabs: Added Lfm/Lmean to Fishing Pressure Indicator"]
[null,null,"5. Vocabs: Updated list of stocks with SID 2026"]
[null,null,"6. Vocabs: Added Model Type DLS and several model names"]
[null,null,"7. Bmsy is mandatory for this year"]
[null,null,"8. Retro bias tab added as mandatory for category 1 and 2"]
[]
[]
["May 2025: ",null,"1. Added some instructions to leave 'Component' blank if there aren't any assessment components"]
[null,null,"2. Blanked out Flim (no longer an ICES ref pt)"]
[null,null,"3. Updated the stock list in the vocab tab"]
[null,null,"4. Changed the year to 2025 in the Readme tab (and as the default assessment year in the Data tab"]
[null,null,"5. Removed 'Cutom1', 'Custom2' etc. from the names of the Custom Reference points."]